fUSD/lending_fUSD_20240109
["ID","MTS","AMOUNT","RATE_DAILY","PERIOD"]
[310937714,1704822779312,-4548.33,0.00041671,30]
[310937715,1704822779322,-2314.18,0.00041671,30]
[310937716,1704822779332,-500.0,0.00041671,30]
[310937717,1704822779342,-2089.66,0.00041671,30]
[310937718,1704822779353,-606.99,0.00041671,30]
[310937719,1704822779362,-641.77,0.00041671,30]
[310937720,1704822779372,-500.0,0.00041671,30]
[310937721,1704822779381,-3012.02,0.00041671,30]
[310937722,1704822779392,-2874.45,0.00041671,30]
[310937723,1704822779401,-847.35,0.00041671,30]
[310937724,1704822779411,-4927.93,0.00041671,30]
[310937725,1704822779421,-1016.59,0.00041671,30]
[310937726,1704822779431,-1577.99,0.00041671,30]
[310937727,1704822779442,-3470.52,0.00041671,30]
[310937728,1704822779452,-500.0,0.00041671,30]
[310937729,1704822779462,-1414.19,0.00041671,30]
[310937730,1704822779471,-500.0,0.00041671,30]
[310937731,1704822779481,-500.0,0.00041671,30]
[310937732,1704822779491,-2293.4,0.00041671,30]
[310937733,1704822779501,-497.63144264,0.00041671,30]
[310937734,1704822779513,-578.14012546,0.00041671,30]
[310937735,1704822779525,-1523.26,0.00041671,30]
[310937736,1704822779537,-5553.45,0.00041671,30]
[310937737,1704822779548,-1021.68,0.00041671,30]
[310937738,1704822779558,-1073.92,0.00041671,30]
[310937739,1704822779568,-1321.2,0.00041671,30]
[310937740,1704822779579,-431.13260957,0.00041671,30]
[310937741,1704822779588,-500.0,0.00041671,30]
[310937742,1704822779598,-5163.1,0.00041671,30]
[310937743,1704822779608,-1629.25,0.00041671,30]
[310937744,1704822779618,-500.0,0.00041671,30]
[310937745,1704822779628,-857.66,0.00041671,30]
[310937746,1704822779638,-2550.91,0.00041671,30]
[310937747,1704822779647,-644.1,0.00041671,30]
[310937748,1704822779657,-1296.82,0.00041671,30]
[310937749,1704822779667,-658.7,0.00041671,30]
[310937750,1704822779677,-2556.57,0.00041671,30]
[310937751,1704822779687,-671.14,0.00041671,30]
[310937752,1704822779696,-1000.0,0.00041675,15]
[310937753,1704822779706,-1000.0,0.00041675,15]
[310937754,1704822779715,-1000.0,0.00041675,15]
[310937755,1704822779725,-1000.0,0.00041675,15]
[310937756,1704822779735,-1000.0,0.00041675,15]
[310937757,1704822779744,-1000.0,0.00041675,15]
[310937758,1704822779754,-1000.0,0.00041675,15]
[310937759,1704822779764,-1000.0,0.00041682,4]
[310937760,1704822779774,-1802.0,0.0004169,3]
[310937761,1704822779786,-500.0,0.00041698,30]
[310937762,1704822779796,-5000.0,0.000417,117]
[310937763,1704822779806,-500.0,0.00041753,30]
[310937764,1704822779815,-500.0,0.00041753,30]
[310937765,1704822779825,-500.0,0.00041753,30]
[310937766,1704822779836,-500.0,0.00041753,30]
[310937767,1704822779846,-807.49,0.00041753,30]
[310937768,1704822779855,-1064.88,0.00041753,30]
[310937769,1704822779865,-504.18,0.00041753,30]
[310937770,1704822779874,-500.0,0.00041753,30]
[310937771,1704822779883,-500.0,0.00041753,30]
[310937772,1704822779893,-1384.92,0.00041753,30]
[310937773,1704822779903,-1040.33,0.00041753,30]
[310937774,1704822779913,-350.38466507,0.00041753,30]
[310937775,1704822779923,-678.56,0.00041753,30]
[310937776,1704822779932,-500.0,0.00041753,30]
[310937777,1704822779942,-500.0,0.00041753,30]
[310937778,1704822779951,-1183.13,0.00041753,30]
[310937779,1704822779961,-396.37165867,0.00041753,2]
[310937780,1704822779970,-487.4269672,0.00041753,30]
[310937781,1704822779980,-500.0,0.00041753,30]
[310937782,1704822779990,-500.0,0.00041753,30]
[310937783,1704822779999,-500.0,0.00041753,30]
[310937784,1704822780009,-500.0,0.00041753,30]
[310937785,1704822780019,-500.0,0.00041753,30]
[310937786,1704822780030,-500.0,0.00041753,30]
[310937787,1704822780040,-500.0,0.00041753,30]
[310937788,1704822780050,-500.0,0.00041753,30]
[310937789,1704822780060,-500.0,0.00041753,30]
[310937790,1704822780070,-848.16,0.00041753,30]
[310937791,1704822780080,-500.0,0.00041753,30]
[310937792,1704822780090,-996.71,0.00041753,30]
[310937793,1704822780100,-582.4,0.00041753,30]
[310937794,1704822780110,-500.0,0.00041753,30]
[310937795,1704822780119,-500.0,0.00041753,30]
[310937796,1704822780129,-500.0,0.00041753,30]
[310937797,1704822780139,-500.0,0.00041753,30]
[310937798,1704822780149,-763.12,0.00041753,30]
[310937799,1704822780159,-500.0,0.00041753,30]
[310937800,1704822780169,-629.14,0.00041753,2]
[310937801,1704822780179,-500.0,0.00041753,30]
[310937802,1704822780188,-668.65,0.00041753,30]
[310937803,1704822780198,-823.05,0.00041753,30]
[310937804,1704822780209,-500.0,0.00041753,30]
[310937805,1704822780219,-500.0,0.00041753,30]
[310937806,1704822780228,-500.0,0.00041753,30]
[310937807,1704822780238,-500.0,0.00041753,30]
[310937808,1704822780248,-500.0,0.00041753,30]
[310937809,1704822780258,-723.9,0.00041753,30]
[310937810,1704822780268,-782.81,0.00041753,30]
[310937811,1704822780278,-500.0,0.00041753,30]
[310937812,1704822780287,-500.0,0.00041753,30]
[310937813,1704822780297,-649.55679688,0.00041753,30]
[310937814,1704822780308,-969.63,0.00041753,30]
[310937815,1704822780318,-566.95,0.00041753,30]
[310937816,1704822780328,-500.0,0.00041753,30]
[310937817,1704822780338,-500.0,0.00041753,30]
[310937818,1704822780348,-500.0,0.00041753,30]
[310937819,1704822780357,-203.22596799,0.00041753,30]
[310937820,1704822780367,-623.06,0.00041753,30]
[310937821,1704822780377,-539.90090894,0.00041753,30]
[310937822,1704822780387,-500.0,0.00041753,30]
[310937823,1704822780397,-516.99,0.00041753,30]
[310937824,1704822780406,-500.0,0.00041753,30]
[310937825,1704822780416,-702.04,0.00041753,30]
[310937826,1704822780425,-500.0,0.00041753,30]
[310937827,1704822780435,-500.0,0.00041753,30]
[310937828,1704822780445,-546.68783339,0.00041753,30]
[310937829,1704822780454,-716.56,0.00041753,30]
[310937830,1704822780464,-748.95,0.00041753,30]
[310937831,1704822780473,-500.0,0.00041753,15]
[310937832,1704822780483,-500.0,0.00041753,30]
[310937833,1704822780492,-672.74,0.00041753,30]
[310937834,1704822780501,-500.0,0.00041753,30]
[310937835,1704822780512,-500.0,0.00041753,30]
[310937836,1704822780521,-500.0,0.00041753,30]
[310937837,1704822780531,-647.35,0.00041753,30]
[310937838,1704822780541,-685.1,0.00041753,30]
[310937839,1704822780551,-500.0,0.00041753,30]
[310937840,1704822780560,-327.01043125,0.00041753,30]
[310937841,1704822780569,-1120.19,0.00041753,30]
[310937842,1704822780579,-500.0,0.00041753,30]
[310937843,1704822780588,-500.0,0.00041753,30]
[310937844,1704822780598,-316.64232503,0.00041753,30]
[310937845,1704822780608,-500.0,0.00041753,30]
[310937846,1704822780618,-500.0,0.00041753,30]
[310937847,1704822780627,-500.0,0.00041753,30]
[310937848,1704822780637,-500.0,0.00041753,30]
[310937849,1704822780646,-500.0,0.00041753,30]
[310937850,1704822780655,-647.58,0.00041753,30]
[310937851,1704822780665,-500.0,0.00041753,30]
[310937852,1704822780674,-500.0,0.00041753,30]
[310937853,1704822780684,-558.85,0.00041753,30]
[310937854,1704822780694,-742.86,0.00041753,30]
[310937855,1704822780704,-581.63,0.00041753,30]
[310937856,1704822780713,-807.83,0.00041753,30]
[310937857,1704822780723,-500.0,0.00041753,30]
[310937858,1704822780732,-500.0,0.00041753,30]
[310937859,1704822780741,-500.0,0.00041753,30]
[310937860,1704822780751,-500.0,0.00041753,30]
[310937861,1704822780760,-517.95,0.00041753,30]
[310937862,1704822780770,-500.0,0.00041753,30]
[310937863,1704822780780,-500.0,0.00041753,30]
[310937864,1704822780789,-632.05,0.00041753,30]
[310937865,1704822780799,-500.0,0.00041753,30]
[310937866,1704822780808,-500.0,0.00041753,30]
[310937867,1704822780817,-500.0,0.00041753,30]
[310937868,1704822780827,-500.0,0.00041753,30]
[310937869,1704822780836,-654.13,0.00041753,30]
[310937870,1704822780845,-899.39,0.00041753,30]
[310937871,1704822780855,-500.0,0.00041753,30]
[310937872,1704822780864,-500.0,0.00041753,30]
[310937873,1704822780873,-537.47,0.00041753,30]
[310937874,1704822780882,-500.0,0.00041753,30]
[310937875,1704822780891,-680.46,0.00041753,30]
[310937876,1704822781147,-797.4,0.00041753,30]
[310937877,1704822781162,-500.0,0.00041753,7]
[310937878,1704822781171,-1018.51,0.00041753,30]
[310937879,1704822781181,-856.07,0.00041753,30]
[310937880,1704822781191,-500.0,0.00041753,30]
[310937881,1704822781201,-500.0,0.00041753,30]
[310937882,1704822781210,-500.0,0.00041753,30]
[310937883,1704822781220,-500.0,0.00041753,30]
[310937884,1704822781229,-1130.34,0.00041753,30]
[310937885,1704822781239,-593.8,0.00041753,30]
[310937886,1704822781248,-500.0,0.00041753,30]
[310937887,1704822781257,-500.0,0.00041753,30]
[310937888,1704822781267,-511.72,0.00041753,30]
[310937889,1704822781276,-952.27,0.00041753,30]
[310937890,1704822781287,-528.56,0.00041753,30]
[310937891,1704822781296,-500.0,0.00041753,30]
[310937892,1704822781305,-691.64,0.00041753,30]
[310937893,1704822781315,-500.0,0.00041753,30]
[310937894,1704822781324,-500.0,0.00041753,30]
[310937895,1704822781334,-500.0,0.00041753,30]
[310937896,1704822781343,-1470.07,0.00041753,30]
[310937897,1704822781352,-834.95,0.00041753,30]
[310937898,1704822781362,-500.0,0.00041753,30]
[310937899,1704822781372,-603.81,0.00041753,30]
[310937900,1704822781381,-507.57781865,0.00041753,30]
[310937901,1704822781391,-500.0,0.00041753,30]
[310937902,1704822781401,-3062.67,0.00041753,30]
[310937903,1704822781410,-637.53,0.00041753,30]
[310937904,1704822781420,-500.0,0.00041753,30]
[310937905,1704822781429,-500.0,0.00041753,30]
[310937906,1704822781439,-500.0,0.00041753,30]
[310937907,1704822781449,-500.0,0.00041753,30]
[310937908,1704822781459,-951.54,0.00041753,30]
[310937909,1704822781468,-1554.84,0.00041753,30]
[310937910,1704822781478,-500.0,0.00041753,30]
[310937911,1704822781488,-500.0,0.00041753,30]
[310937912,1704822781498,-783.64,0.00041753,30]
[310937913,1704822781508,-500.0,0.00041753,30]
[310937914,1704822781522,-500.0,0.00041753,30]
[310937915,1704822781532,-500.0,0.00041753,30]
[310937916,1704822781542,-1000.0,0.00041753,2]
[310937917,1704822781551,-500.0,0.00041753,30]
[310937918,1704822781560,-955.99,0.00041753,30]
[310937919,1704822781570,-584.0,0.00041753,30]
[310937920,1704822781579,-500.0,0.00041753,30]
[310937921,1704822781589,-500.0,0.00041753,30]
[310937922,1704822781598,-742.2,0.00041753,30]
[310937923,1704822781608,-500.0,0.00041753,30]
[310937924,1704822781618,-667.03,0.00041753,30]
[310937925,1704822781628,-500.0,0.00041753,30]
[310937926,1704822781638,-1579.23,0.00041753,30]
[310937927,1704822781649,-500.0,0.00041753,30]
[310937928,1704822781658,-500.0,0.00041753,30]
[310937929,1704822781668,-1683.26,0.00041753,30]
[310937930,1704822781678,-732.8,0.00041753,30]
[310937931,1704822781689,-500.0,0.00041753,30]
[310937932,1704822781700,-500.0,0.00041753,30]
[310937933,1704822781709,-500.0,0.00041753,30]
[310937934,1704822781719,-1701.57,0.00041753,30]
[310937935,1704822781728,-500.0,0.00041753,30]
[310937936,1704822781737,-609.24,0.00041753,30]
[310937937,1704822781746,-995.31,0.00041753,30]
[310937938,1704822781755,-500.0,0.00041753,30]
[310937939,1704822781764,-500.0,0.00041753,30]
[310937940,1704822781775,-546.32,0.00041753,30]
[310937941,1704822781787,-1075.03,0.00041753,30]
[310937942,1704822781797,-1289.05,0.00041753,30]
[310937943,1704822781807,-500.0,0.00041753,30]
[310937944,1704822781816,-500.0,0.00041753,30]
[310937945,1704822781825,-500.0,0.00041753,30]
[310937946,1704822781835,-1605.53,0.00041753,30]
[310937947,1704822781845,-746.35,0.00041753,30]
[310937948,1704822781855,-500.0,0.00041753,30]
[310937949,1704822781865,-1189.53,0.00041753,30]
[310937950,1704822781875,-500.0,0.00041753,30]
[310937951,1704822781885,-1111.16,0.00041753,30]
[310937952,1704822781896,-500.0,0.00041753,30]
[310937953,1704822781907,-1587.98,0.00041753,30]
[310937954,1704822781918,-566.22,0.00041753,30]
[310937955,1704822781928,-927.99,0.00041753,30]
[310937956,1704822781938,-500.0,0.00041753,30]
[310937957,1704822781949,-631.36794167,0.00041753,30]
[310937958,1704822781960,-665.79,0.00041753,30]
[310937959,1704822781972,-1083.99,0.00041753,30]
[310937960,1704822781983,-1352.1,0.00041753,30]
[310937961,1704822781994,-500.0,0.00041753,30]
[310937962,1704822782004,-657.61,0.00041753,30]
[310937963,1704822782015,-500.0,0.00041753,30]
[310937964,1704822782026,-831.46,0.00041753,30]
[310937965,1704822782039,-876.27,0.00041753,30]
[310937966,1704822782050,-1165.49,0.00041753,30]
[310937967,1704822782060,-1499.79,0.00041753,30]
[310937968,1704822782071,-1224.45,0.00041753,30]
[310937969,1704822782082,-585.09,0.00041753,30]
[310937970,1704822782092,-500.0,0.00041753,30]
[310937971,1704822782102,-1187.3,0.00041753,30]
[310937972,1704822782113,-500.0,0.00041753,30]
[310937973,1704822782123,-1451.41,0.00041753,30]
[310937974,1704822782133,-1109.01,0.00041753,30]
[310937975,1704822782143,-1165.31,0.00041753,30]
[310937976,1704822782154,-500.0,0.00041753,30]
[310937977,1704822782163,-500.0,0.00041753,30]
[310937978,1704822782174,-500.0,0.00041753,30]
[310937979,1704822782184,-1030.53,0.00041753,30]
[310937980,1704822782194,-1058.21,0.00041753,30]
[310937981,1704822782204,-713.27,0.00041753,30]
[310937982,1704822782214,-500.0,0.00041753,30]
[310937983,1704822782225,-1268.66,0.00041753,30]
[310937984,1704822782237,-2171.66,0.00041753,30]
[310937985,1704822782247,-657.69,0.00041753,30]
[310937986,1704822782257,-300.0,0.00041753,30]
[310937987,1704822782268,-816.63,0.00041753,5]
[310937988,1704822782278,-698.65,0.00041753,30]
[310937989,1704822782288,-835.19,0.00041753,30]
[310937990,1704822782298,-500.0,0.00041753,30]
[310937991,1704822782309,-500.0,0.00041753,30]
[310937992,1704822782319,-500.0,0.00041753,30]
[310937993,1704822782329,-617.92,0.00041753,30]
[310937994,1704822782340,-3829.67,0.00041753,30]
[310937995,1704822782354,-1000.0,0.00041753,2]
[310937996,1704822782364,-500.0,0.00041753,2]
[310937997,1704822782374,-653.11,0.00041753,30]
[310937998,1704822782383,-500.0,0.00041753,30]
[310937999,1704822782393,-1196.79,0.00041753,30]
[310938000,1704822782404,-500.0,0.00041753,30]
[310938001,1704822782413,-500.0,0.00041753,30]
[310938002,1704822782423,-924.68,0.00041753,30]
[310938003,1704822782433,-1534.65,0.00041753,30]
[310938004,1704822782443,-1071.73,0.00041753,30]
[310938005,1704822782452,-327.47,0.00041753,30]
[310938006,1704822782463,-910.34,0.00041753,30]
[310938007,1704822782475,-563.27,0.00041753,30]
[310938008,1704822782486,-2625.83,0.00041753,30]
[310938009,1704822782496,-1003.2,0.00041753,30]
[310938010,1704822782506,-1069.06,0.00041753,30]
[310938011,1704822782518,-693.77,0.00041753,30]
[310938012,1704822782530,-3358.65,0.00041753,30]
[310938013,1704822782540,-3778.52,0.00041753,30]
[310938014,1704822782550,-775.18,0.00041753,30]
[310938015,1704822782560,-500.0,0.00041753,30]
[310938016,1704822782570,-1018.17,0.00041753,30]
[310938017,1704822782582,-500.0,0.00041753,30]
[310938018,1704822782593,-627.54,0.00041753,30]
[310938019,1704822782604,-1597.58,0.00041753,30]
[310938020,1704822782614,-680.27,0.00041753,30]
[310938021,1704822782625,-1108.25,0.00041753,30]
[310938022,1704822782636,-680.58,0.00041753,30]
[310938023,1704822782646,-500.0,0.00041753,30]
[310938024,1704822782657,-840.77,0.00041753,30]
[310938025,1704822782667,-500.0,0.00041753,30]
[310938026,1704822782678,-500.0,0.00041753,30]
[310938027,1704822782688,-1688.18,0.00041753,30]
[310938028,1704822782700,-500.0,0.00041753,30]
[310938029,1704822782710,-500.0,0.00041753,30]
[310938030,1704822782720,-764.23,0.00041753,30]
[310938031,1704822782731,-500.0,0.00041753,30]
[310938032,1704822782741,-500.0,0.00041753,30]
[310938033,1704822782752,-500.0,0.00041753,30]
[310938034,1704822782761,-1292.97,0.00041753,30]
[310938035,1704822782771,-2704.06,0.00041753,30]
[310938036,1704822782781,-897.63,0.00041753,30]
[310938037,1704822782792,-689.03,0.00041753,30]
[310938038,1704822782803,-1997.42,0.00041753,30]
[310938039,1704822782813,-753.25,0.00041753,30]
[310938040,1704822782824,-863.4,0.00041753,30]
[310938041,1704822782834,-500.0,0.00041753,30]
[310938042,1704822782844,-1469.75,0.00041753,30]
[310938043,1704822782854,-1538.51,0.00041753,30]
[310938044,1704822782865,-500.0,0.00041753,30]
[310938045,1704822782876,-744.34,0.00041753,30]
[310938046,1704822782886,-237.36491356,0.00041753,30]
[310938047,1704822782897,-155.97521928,0.00041753,30]
[310938048,1704822782907,-1416.77,0.00041753,30]
[310938049,1704822782917,-544.19,0.00041753,30]
[310938050,1704822782928,-1752.19,0.00041753,30]
[310938051,1704822782938,-500.0,0.00041753,10]
[310938052,1704822782948,-500.0,0.00041753,30]
[310938053,1704822782959,-500.0,0.00041753,30]
[310938054,1704822782969,-992.88,0.00041753,30]
[310938055,1704822782980,-907.17,0.00041753,30]
[310938056,1704822782990,-820.02,0.00041753,30]
[310938057,1704822783000,-696.79,0.00041753,30]
[310938058,1704822783010,-1042.21,0.00041753,30]
[310938059,1704822783021,-830.16,0.00041753,30]
[310938060,1704822783032,-921.85,0.00041753,30]
[310938061,1704822783043,-500.0,0.00041753,30]
[310938062,1704822783054,-936.43,0.00041753,30]
[310938063,1704822783064,-500.0,0.00041753,30]
[310938064,1704822783073,-500.0,0.00041753,30]
[310938065,1704822783082,-500.0,0.00041753,30]
[310938066,1704822783092,-500.0,0.00041753,30]
[310938067,1704822783102,-500.0,0.00041753,30]
[310938068,1704822783112,-500.0,0.00041753,30]
[310938069,1704822783121,-3608.68,0.00041753,30]
[310938070,1704822783130,-1062.16,0.00041753,30]
[310938071,1704822783140,-797.98,0.00041753,30]
[310938072,1704822783150,-848.43,0.00041753,30]
[310938073,1704822783160,-594.13,0.00041753,30]
[310938074,1704822783169,-543.9,0.00041753,30]
[310938075,1704822783179,-500.0,0.00041753,30]
[310938076,1704822783188,-500.0,0.00041753,30]
[310938077,1704822783198,-765.38,0.00041753,30]
[310938078,1704822783208,-1432.21,0.00041753,30]
[310938079,1704822783218,-1359.32,0.00041753,30]
[310938080,1704822783228,-500.0,0.00041753,30]
[310938081,1704822783237,-500.0,0.00041753,30]
[310938082,1704822783247,-1854.87,0.00041753,30]
[310938083,1704822783257,-720.0,0.00041753,30]
[310938084,1704822783267,-1281.62,0.00041753,30]
[310938085,1704822783276,-558.71,0.00041753,30]
[310938086,1704822783287,-1462.19,0.00041753,30]
[310938087,1704822783297,-500.0,0.00041753,30]
[310938088,1704822783308,-500.0,0.00041753,30]
[310938089,1704822783317,-543.96,0.00041753,30]
[310938090,1704822783328,-1104.04,0.00041753,30]
[310938091,1704822783338,-500.0,0.00041753,30]
[310938092,1704822783348,-500.0,0.00041753,30]
[310938093,1704822783357,-500.0,0.00041753,2]
[310938094,1704822783367,-2707.71,0.00041753,30]
[310938095,1704822783377,-651.83,0.00041753,30]
[310938096,1704822783386,-851.87,0.00041753,30]
[310938097,1704822783396,-708.74,0.00041753,30]
[310938098,1704822783405,-500.0,0.00041753,30]
[310938099,1704822783415,-500.0,0.00041753,30]
[310938100,1704822783424,-596.03,0.00041753,30]
[310938101,1704822783434,-859.98,0.00041753,30]
[310938102,1704822783444,-1208.31,0.00041753,30]
[310938103,1704822783453,-1009.5,0.00041753,30]
[310938104,1704822783462,-1834.86,0.00041753,30]
[310938105,1704822783472,-2228.31,0.00041753,30]
[310938106,1704822783481,-517.77921622,0.00041753,30]
[310938107,1704822783491,-155.20422328,0.00041753,30]
[310938108,1704822783500,-500.0,0.00041753,30]
[310938109,1704822783515,-758.85,0.00041753,30]
[310938110,1704822783525,-500.0,0.00041753,30]
[310938111,1704822783536,-1653.94,0.00041753,30]
[310938112,1704822783546,-850.13,0.00041753,30]
[310938113,1704822783555,-2251.85,0.00041753,30]
[310938114,1704822783565,-1855.79,0.00041753,30]
[310938115,1704822783574,-1305.33,0.00041753,30]
[310938116,1704822783584,-500.0,0.00041753,30]
[310938117,1704822783593,-1047.74,0.00041753,30]
[310938118,1704822783603,-500.0,0.00041753,30]
[310938119,1704822783612,-500.0,0.00041753,30]
[310938120,1704822783621,-657.1,0.00041753,30]
[310938121,1704822783631,-2864.14,0.00041753,30]
[310938122,1704822783641,-500.0,0.00041753,30]
[310938123,1704822783651,-942.34,0.00041753,30]
[310938124,1704822783660,-514.02,0.00041753,30]
[310938125,1704822783670,-500.0,0.00041753,30]
[310938126,1704822783785,-1069.4,0.00041753,30]
[310938127,1704822783794,-2011.82,0.00041753,30]
[310938128,1704822783803,-1000.0,0.00041753,14]
[310938129,1704822783812,-500.0,0.00041753,30]
[310938130,1704822783822,-2179.29,0.00041753,30]
[310938131,1704822783831,-1226.36,0.00041753,30]
[310938132,1704822783841,-500.0,0.00041753,30]
[310938133,1704822783850,-500.0,0.00041753,30]
[310938134,1704822783860,-1167.82,0.00041753,30]
[310938135,1704822783869,-1543.99,0.00041753,30]
[310938136,1704822783879,-650.25,0.00041753,30]
[310938137,1704822783888,-1662.23,0.00041753,30]
[310938138,1704822783897,-1333.2,0.00041753,30]
[310938139,1704822783907,-593.34,0.00041753,30]
[310938140,1704822783916,-1120.58,0.00041753,30]
[310938141,1704822783926,-1539.75,0.00041753,30]
[310938142,1704822783935,-500.0,0.00041753,30]
[310938143,1704822783945,-500.0,0.00041753,30]
[310938144,1704822783955,-577.44,0.00041753,30]
[310938145,1704822783965,-500.0,0.00041753,30]
[310938146,1704822783974,-2132.61,0.00041753,30]
[310938147,1704822783984,-2334.2,0.00041753,30]
[310938148,1704822783994,-2030.29,0.00041753,30]
[310938149,1704822784004,-820.59,0.00041753,30]
[310938150,1704822784014,-500.0,0.00041753,30]
[310938151,1704822784023,-500.0,0.00041753,30]
[310938152,1704822784035,-717.62,0.00041753,30]
[310938153,1704822784047,-500.0,0.00041753,30]
[310938154,1704822784058,-648.37,0.00041753,30]
[310938155,1704822784069,-500.0,0.00041753,30]
[310938156,1704822784079,-2212.18,0.00041753,30]
[310938157,1704822784090,-500.0,0.00041753,30]
[310938158,1704822784100,-500.0,0.00041753,30]
[310938159,1704822784111,-286.20762352,0.00041753,30]
[310938160,1704822784121,-500.0,0.00041753,30]
[310938161,1704822784131,-1957.26,0.00041753,30]
[310938162,1704822784140,-500.0,0.00041753,30]
[310938163,1704822784151,-500.0,0.00041753,30]
[310938164,1704822784161,-789.94,0.00041753,7]
[310938165,1704822784172,-1295.45,0.00041753,30]
[310938166,1704822784182,-524.13,0.00041753,30]
[310938167,1704822784192,-500.0,0.00041753,30]
[310938168,1704822784201,-500.0,0.00041753,30]
[310938169,1704822784211,-286.54113799,0.00041753,30]
[310938170,1704822784221,-1177.5,0.00041753,30]
[310938171,1704822784231,-774.08,0.00041753,30]
[310938172,1704822784241,-846.58,0.00041753,30]
[310938173,1704822784251,-626.38,0.00041753,30]
[310938174,1704822784261,-1523.1,0.00041753,30]
[310938175,1704822784272,-1815.37,0.00041753,30]
[310938176,1704822784281,-1680.4,0.00041753,30]
[310938177,1704822784300,-500.0,0.00041753,30]
[310938178,1704822784309,-500.0,0.00041753,30]
[310938179,1704822784319,-1453.99,0.00041753,30]
[310938180,1704822784329,-500.0,0.00041753,30]
[310938181,1704822784338,-522.28,0.00041753,30]
[310938182,1704822784348,-741.95,0.00041753,30]
[310938183,1704822784357,-2160.84,0.00041753,30]
[310938184,1704822784367,-1117.93,0.00041753,30]
[310938185,1704822784376,-976.55,0.00041753,30]
[310938186,1704822784386,-500.0,0.00041753,30]
[310938187,1704822784396,-785.61,0.00041753,30]
[310938188,1704822784405,-602.19,0.00041753,30]
[310938189,1704822784416,-500.0,0.00041753,30]
[310938190,1704822784426,-500.0,0.00041753,30]
[310938191,1704822784435,-1722.63,0.00041753,30]
[310938192,1704822784445,-625.26,0.00041753,30]
[310938193,1704822784455,-500.0,0.00041753,30]
[310938194,1704822784464,-1678.63,0.00041753,30]
[310938195,1704822784474,-500.0,0.00041753,30]
[310938196,1704822784483,-649.03,0.00041753,30]
[310938197,1704822784492,-534.61,0.00041753,30]
[310938198,1704822784502,-1131.06,0.00041753,30]
[310938199,1704822784513,-1859.73,0.00041753,30]
[310938200,1704822784523,-500.0,0.00041753,30]
[310938201,1704822784533,-500.0,0.00041753,30]
[310938202,1704822784548,-500.0,0.00041753,30]
[310938203,1704822784557,-2434.09,0.00041753,30]
[310938204,1704822784567,-500.0,0.00041753,30]
[310938205,1704822784576,-709.81,0.00041753,30]
[310938206,1704822784585,-500.0,0.00041753,30]
[310938207,1704822784595,-500.0,0.00041753,30]
[310938208,1704822784604,-2143.09,0.00041753,30]
[310938209,1704822784613,-1393.92,0.00041753,30]
[310938210,1704822784623,-500.0,0.00041753,30]
[310938211,1704822784632,-500.0,0.00041753,30]
[310938212,1704822784641,-1175.4,0.00041753,30]
[310938213,1704822784650,-497.54963501,0.00041753,30]